bitfinex-derivatives/quotes_BTCF0:USTF0_20251202
["timestamp","ask_amount","ask_price","bid_price","bid_amount"]
[1764697639716,0.56968532,91641.0,91640.0,0.001]
[1764697639717,0.511,91641.0,91640.0,0.001]
[1764697640117,0.511,91641.0,91640.0,0.005]
[1764697641532,0.589118,91641.0,91640.0,0.0038362]
[1764697641718,0.511,91641.0,91640.0,0.0038362]
[1764697642029,0.511,91641.0,91640.0,0.1598362]
[1764697642030,0.58924264,91641.0,91640.0,0.1598362]
[1764697642329,0.58924264,91641.0,91640.0,0.004]
[1764697642925,0.8718,91641.0,91640.0,0.002]
[1764697643421,0.1502,91614.0,91613.0,0.5168]
[1764697643829,0.50976,91623.0,91622.0,0.156]
[1764697643830,0.72957718,91623.0,91622.0,0.156]
[1764697644227,0.05870428,91623.0,91622.0,0.156]
[1764697644619,0.05870428,91624.0,91622.0,0.1669128]
[1764697644821,0.20890428,91624.0,91623.0,0.156]
[1764697645021,0.07546,91616.0,91615.0,0.1669137]
[1764697645223,0.1502,91616.0,91615.0,0.1669137]
[1764697645727,0.41950428,91625.0,91618.0,0.156]
[1764697645728,0.1611134,91619.0,91618.0,0.156]
[1764697647334,0.1611134,91619.0,91618.0,0.157]
[1764697648129,0.1611134,91619.0,91618.0,0.16]
[1764697648634,0.1502,91619.0,91618.0,0.16]
[1764697649031,0.05870428,91622.0,91621.0,0.156]
[1764697649235,0.07827238,91635.0,91631.0,0.1669119]
[1764697649422,0.07827238,91639.0,91631.0,0.5277119]
[1764697649735,0.87056,91641.0,91631.0,0.5277119]
[1764697650532,0.3608,91641.0,91640.0,0.1669108]
[1764697650921,0.00027279,91646.0,91645.0,0.1669102]
[1764697651838,0.15047279,91646.0,91645.0,0.07814]
[1764697652137,0.00027279,91646.0,91645.0,0.156]
[1764697652435,0.00227279,91646.0,91645.0,0.156]
[1764697653735,0.00427279,91646.0,91645.0,0.156]
[1764697654250,0.00016371,91655.0,91654.0,0.1478]
[1764697654437,0.1604802,91645.0,91644.0,0.1478]
[1764697655636,0.15157,91645.0,91644.0,0.1478]
[1764697655938,0.002,91645.0,91644.0,0.1478]
[1764697656138,0.0109101,91646.0,91644.0,0.1587102]
[1764697656337,0.1604801,91646.0,91645.0,0.1478]
[1764697656533,0.07485,91646.0,91645.0,0.1478]
[1764697657829,0.43565,91652.0,91651.0,0.1478]
[1764697658031,0.5212794,91652.0,91651.0,0.1478]
[1764697658632,0.14957,91652.0,91651.0,0.1478]
[1764697658841,0.00016371,91655.0,91645.0,0.006]
[1764697658842,0.00016371,91655.0,91654.0,0.1587091]
[1764697659242,0.00016371,91655.0,91654.0,0.1478]
[1764697659436,0.07501371,91655.0,91654.0,0.1478]
[1764697659843,0.00016371,91655.0,91654.0,0.1478]
[1764697660142,0.07501371,91655.0,91654.0,0.1478]
[1764697660738,0.00016371,91655.0,91654.0,0.1478]
[1764697660946,0.00016371,91655.0,91654.0,0.1518]
[1764697661539,0.00016371,91655.0,91654.0,0.5126]
[1764697661757,0.00016371,91655.0,91654.0,0.5146]
[1764697666346,0.14973371,91655.0,91654.0,0.5146]
[1764697666644,0.51053371,91655.0,91654.0,0.006]
[1764697667547,0.58880609,91655.0,91654.0,0.006]
[1764697667746,0.51053371,91655.0,91654.0,0.006]
[1764697667943,0.58880609,91655.0,91654.0,0.006]
[1764697668340,0.51053371,91655.0,91654.0,0.006]
[1764697671256,0.58880609,91655.0,91654.0,0.006]
[1764697671457,0.51053371,91655.0,91654.0,0.006]
[1764697671848,0.58880609,91655.0,91654.0,0.006]
[1764697673153,0.59971509,91655.0,91654.0,0.006]
[1764697674054,0.52144271,91655.0,91654.0,0.006]
[1764697674762,0.14957,91646.0,91645.0,0.0109102]
[1764697674960,0.65917,91646.0,91645.0,0.0109102]
[1764697675662,0.14957,91642.0,91641.0,0.3608]
[1764697675858,0.14957,91642.0,91641.0,0.3717107]
[1764697676362,0.14957,91642.0,91641.0,0.5195107]
[1764697676776,0.05870622,91652.0,91641.0,0.5195107]
[1764697676975,0.20827622,91652.0,91651.0,0.1587095]
[1764697677172,0.05870622,91652.0,91651.0,0.1587095]
[1764697677377,0.05870622,91659.0,91654.0,0.1587091]
[1764697677581,0.43581371,91655.0,91654.0,0.1587091]
[1764697677874,0.51053371,91655.0,91654.0,0.1478]
[1764697678580,0.14957,91652.0,91651.0,0.004]
[1764697679377,0.20827622,91652.0,91651.0,0.001]
[1764697679768,0.14957,91652.0,91651.0,0.001]
[1764697680168,0.14957,91652.0,91651.0,0.003]
[1764697680368,0.14957,91652.0,91651.0,0.002]
[1764697680781,0.36096371,91655.0,91620.0,0.04755]
[1764697680782,0.1604812,91637.0,91620.0,0.04755]
[1764697680969,0.1604812,91637.0,91614.0,0.1478]
[1764697680970,0.1604838,91615.0,91614.0,0.1478]
[1764697681172,0.14957,91614.0,91613.0,0.00012748]
[1764697681982,0.14957,91614.0,91606.0,0.07532291]
[1764697681983,0.14957,91607.0,91606.0,0.07532291]
[1764697682172,0.5096,91620.0,91619.0,0.0328333]
[1764697682377,0.00016371,91623.0,91622.0,0.1587129]
[1764697682970,0.00024293,91623.0,91622.0,0.5587129]
[1764697683278,0.13707,91631.0,91630.0,0.075932]
[1764697683665,0.13707,91631.0,91630.0,0.143062]
[1764697684069,0.13707,91641.0,91640.0,0.1430608]
[1764697684274,0.13711826,91641.0,91640.0,0.1430608]
[1764697684675,4.826e-05,91641.0,91640.0,0.1430608]
[1764697686885,0.00804826,91641.0,91640.0,0.1440608]
[1764697687680,0.00804826,91641.0,91640.0,0.13315]
[1764697687681,0.14711826,91641.0,91640.0,0.13315]
[1764697688788,0.13911826,91641.0,91640.0,0.13215]
[1764697689086,0.14811826,91641.0,91640.0,0.13315]
[1764697689275,0.14811826,91641.0,91640.0,0.13215]
[1764697689276,0.13711826,91641.0,91640.0,0.13215]
[1764697689474,0.13711826,91641.0,91631.0,0.122]
[1764697689475,0.06737,91632.0,91631.0,0.25415]
[1764697689884,0.13707,91632.0,91631.0,0.25415]
[1764697690184,0.13707,91624.0,91623.0,0.1430627]
[1764697690487,0.13707,91624.0,91623.0,0.13215]
[1764697690878,0.13707,91624.0,91617.0,0.3608]
[1764697690879,0.13707,91622.0,91617.0,0.3608]
[1764697691076,0.13707,91622.0,91609.0,0.3608]
[1764697691277,0.13707,91622.0,91621.0,0.06518371]
[1764697692087,0.36084826,91624.0,91623.0,0.13215]
[1764697692482,0.36084826,91624.0,91623.0,0.13315]
[1764697692683,0.36984826,91624.0,91623.0,0.13415]
[1764697692988,0.36084826,91624.0,91623.0,0.13315]
[1764697693189,0.36084826,91624.0,91623.0,0.13515]
[1764697693580,0.36084826,91624.0,91623.0,0.13315]
[1764697693782,0.50091826,91624.0,91623.0,0.13315]
[1764697693977,0.50091826,91624.0,91623.0,0.13215]
[1764697694893,0.36384826,91624.0,91623.0,0.13215]
[1764697695080,0.36084826,91624.0,91623.0,0.13215]
[1764697695390,0.01104826,91624.0,91623.0,0.49395]
[1764697695889,0.00016371,91631.0,91630.0,0.185652]
[1764697696482,0.06753371,91631.0,91630.0,0.143062]
[1764697696688,0.13723371,91631.0,91630.0,0.143062]
[1764697697190,0.14623371,91631.0,91630.0,0.144062]
[1764697698479,0.1479827,91624.0,91623.0,0.3608]
[1764697698681,0.13707,91622.0,91621.0,0.00016371]
[1764697700188,0.14107,91622.0,91621.0,0.00016371]
[1764697700591,0.14107,91622.0,91621.0,0.13231371]
[1764697700778,0.14107,91622.0,91621.0,0.06518371]
[1764697701583,0.14007,91622.0,91621.0,0.06618371]
[1764697701895,0.07037,91622.0,91621.0,0.13331371]
[1764697702197,0.0109128,91623.0,91622.0,0.13215]
[1764697702390,0.13707,91630.0,91629.0,0.1430621]
[1764697703086,0.13707,91630.0,91629.0,0.13215]
[1764697703485,0.17893,91630.0,91629.0,0.06502]
[1764697704494,0.13707,91623.0,91622.0,0.06702]
[1764697704697,0.13707,91623.0,91622.0,0.13215]
[1764697705094,0.13707,91630.0,91629.0,0.13215]
[1764697705492,0.13707,91630.0,91629.0,0.13815]
[1764697706007,0.13707,91630.0,91629.0,0.13315]
[1764697706191,0.00016371,91631.0,91630.0,0.185652]
[1764697706592,0.00016371,91631.0,91630.0,0.546452]
[1764697708397,0.00216371,91631.0,91630.0,0.546452]
[1764697709193,0.00116371,91631.0,91630.0,0.668452]
[1764697710190,0.13823371,91631.0,91630.0,0.61495]
[1764697710908,0.14123371,91631.0,91630.0,0.61495]
[1764697711197,0.14223371,91631.0,91630.0,0.61495]
[1764697711398,0.50303371,91631.0,91630.0,0.13215]
[1764697712805,0.43333371,91631.0,91630.0,0.15661]
[1764697713198,0.49212552,91631.0,91630.0,0.15661]
[1764697713804,0.43333371,91631.0,91630.0,0.15661]
[1764697714405,0.43033371,91631.0,91630.0,0.15661]
[1764697714602,0.43333371,91631.0,91630.0,0.15661]
[1764697715004,0.43033371,91631.0,91630.0,0.15661]
[1764697715206,0.43333371,91631.0,91630.0,0.15661]
[1764697716004,0.49619371,91631.0,91630.0,0.13215]
[1764697716309,0.49619371,91631.0,91630.0,0.143062]
[1764697717904,0.49319371,91631.0,91630.0,0.143062]
[1764697718109,0.49619371,91631.0,91630.0,0.143062]
[1764697718499,0.49319371,91631.0,91630.0,0.143062]
[1764697718699,0.0109126,91627.0,91626.0,0.0109122]
[1764697718904,0.1324328,91623.0,91622.0,0.2546829]
[1764697719205,0.1324328,91623.0,91622.0,0.24377]
[1764697719411,0.12152,91622.0,91621.0,0.00016371]
[1764697720009,0.3608,91623.0,91622.0,0.0109129]
[1764697720210,0.12452,91627.0,91626.0,0.12177]
[1764697721011,0.12552,91627.0,91626.0,0.12177]
[1764697721208,0.001,91627.0,91626.0,0.12177]
[1764697721708,0.12252,91627.0,91626.0,0.12177]
[1764697721920,0.12552,91627.0,91626.0,0.12177]
[1764697722105,0.12452,91627.0,91626.0,0.12177]
[1764697722412,0.12552,91627.0,91626.0,0.12177]
[1764697722803,0.12252,91627.0,91626.0,0.12177]
[1764697723002,0.12552,91627.0,91626.0,0.12177]
[1764697724214,0.12252,91627.0,91626.0,0.12177]
[1764697724416,0.12252,91627.0,91626.0,0.12677]
[1764697724712,0.12152,91627.0,91626.0,0.12677]
[1764697724899,0.12152,91627.0,91626.0,0.12177]
[1764697725520,0.12152,91627.0,91626.0,0.12677]
[1764697726014,0.0109125,91626.0,91625.0,0.0109126]
[1764697726216,0.1324325,91626.0,91625.0,0.0706026]
[1764697726414,0.12152,91626.0,91625.0,0.1326826]
[1764697726715,0.001,91627.0,91626.0,0.12377]
[1764697728115,0.001,91627.0,91626.0,0.12177]
[1764697728315,0.12841329,91630.0,91629.0,0.12177]
[1764697728814,0.19127329,91630.0,91629.0,0.12177]
[1764697729915,0.19127329,91630.0,91629.0,0.24377]
[1764697730216,0.19127329,91630.0,91629.0,0.24877]
[1764697730414,0.132432,91630.0,91629.0,0.24877]
[1764697730805,0.12152,91630.0,91629.0,0.2776121]
[1764697731006,0.12152,91630.0,91629.0,0.2616821]
[1764697731404,0.132432,91630.0,91629.0,0.25077]
[1764697731606,0.132432,91630.0,91629.0,0.18869]
[1764697732007,0.12152,91630.0,91629.0,0.18869]
[1764697732217,0.12152,91630.0,91629.0,0.25077]
[1764697732720,0.12152,91630.0,91629.0,0.24877]
[1764697732905,0.12152,91630.0,91629.0,0.25077]
[1764697733609,0.12152,91630.0,91629.0,0.24877]
[1764697734018,0.132432,91630.0,91629.0,0.24877]
[1764697734517,0.132432,91630.0,91629.0,0.24577]
[1764697735019,0.135432,91630.0,91629.0,0.24577]
[1764697735408,0.132432,91630.0,91629.0,0.24577]
[1764697735712,0.132432,91630.0,91629.0,0.25077]
[1764697735909,0.132432,91630.0,91629.0,0.24877]
[1764697736117,0.493232,91630.0,91629.0,0.127]
[1764697736610,0.57168309,91630.0,91629.0,0.127]
[1764697736805,0.57168309,91630.0,91621.0,0.00016371]
[1764697737014,0.4932329,91622.0,91621.0,0.00016371]
[1764697737607,0.0109145,91609.0,91606.0,0.01118771]
[1764697737824,0.1324345,91609.0,91608.0,0.12177]
[1764697738818,0.12152,91607.0,91606.0,0.00027291]
[1764697740007,0.12152,91607.0,91606.0,0.00527291]
[1764697740609,0.12152,91607.0,91606.0,0.00727291]
[1764697740821,0.12152,91607.0,91606.0,0.12904291]
[1764697741009,0.0588475,91609.0,91608.0,0.12177]
[1764697741205,0.0588475,91614.0,91611.0,0.0109142]
[1764697741406,0.0588475,91616.0,91615.0,0.12177]
[1764697741612,0.0588475,91616.0,91608.0,0.3608]
[1764697741613,0.12152,91609.0,91608.0,0.48257]
[1764697741819,0.12152,91607.0,91606.0,0.00727291]
[1764697742017,0.12152,91607.0,91606.0,0.12204291]
[1764697742422,0.12152,91607.0,91606.0,0.00027291]
[1764697742812,0.12152,91607.0,91606.0,0.11261291]
[1764697743012,0.12152,91607.0,91606.0,0.11461291]
[1764697743213,0.12152,91607.0,91606.0,0.11761291]
[1764697743522,0.05866,91607.0,91606.0,0.11761291]
[1764697743716,0.0588354,91612.0,91611.0,0.10589]
[1764697744021,0.41467,91615.0,91614.0,0.10589]
[1764697744212,0.3608,91615.0,91614.0,0.10589]
[1764697744824,0.3608,91615.0,91614.0,0.22789]
[1764697745019,0.47194,91615.0,91614.0,0.22789]
[1764697745529,0.47194,91615.0,91614.0,0.22989]
[1764697746325,0.47194,91615.0,91614.0,0.124]
[1764697746524,0.47194,91615.0,91614.0,0.125]
[1764697746922,0.3608,91615.0,91614.0,0.23089]
[1764697747122,0.0588354,91621.0,91620.0,0.10589]
[1764697747323,0.0588354,91621.0,91618.0,0.0109134]
[1764697747324,0.11114,91619.0,91618.0,0.1168034]
[1764697748217,0.1220538,91615.0,91614.0,0.124]
[1764697748417,0.11114,91615.0,91614.0,0.22989]
[1764697748625,0.05387,91615.0,91614.0,0.22989]
[1764697748822,0.05387,91615.0,91614.0,0.22789]
[1764697749020,0.11114,91615.0,91614.0,0.22789]
[1764697749419,0.11114,91615.0,91614.0,0.122]
[1764697749616,0.11914,91615.0,91614.0,0.122]
[1764697749811,0.11914,91615.0,91606.0,0.36107291]
[1764697750017,0.11914,91615.0,91571.0,0.2006]
[1764697750018,0.1456356,91600.0,91572.0,0.3608]
[1764697750223,0.8672356,91600.0,91599.0,0.10605371]
[1764697751025,0.8672356,91600.0,91599.0,0.11696941]
[1764697751026,0.7216,91600.0,91599.0,0.11696941]
[1764697751331,0.3608,91600.0,91599.0,0.11696941]
[1764697751719,0.3688,91600.0,91599.0,0.11696941]
[1764697752118,0.3608,91600.0,91599.0,0.11696941]
[1764697752314,0.51927,91600.0,91599.0,0.05340371]
[1764697752524,0.51927,91600.0,91599.0,0.00016371]
[1764697752720,0.51127,91600.0,91599.0,0.00016371]
[1764697752925,0.51727,91600.0,91599.0,0.00016371]
[1764697753125,0.51827,91600.0,91599.0,0.00016371]
[1764697754225,0.57800904,91600.0,91599.0,0.00016371]
[1764697754428,0.51827,91600.0,91599.0,0.00016371]
[1764697754730,0.11114,91584.0,91583.0,0.05332512]
[1764697754926,0.41467,91584.0,91583.0,0.10597512]
[1764697755822,0.42067,91584.0,91583.0,0.10597512]
[1764697756023,0.42167,91584.0,91583.0,0.10597512]
[1764697756328,0.47894,91584.0,91583.0,0.05332512]
[1764697756529,0.47894,91584.0,91583.0,8.512e-05]
[1764697758522,0.3678,91584.0,91583.0,0.10597512]
[1764697758844,0.007,91584.0,91583.0,0.22797512]
[1764697761322,0.05487,91584.0,91583.0,0.22797512]
[1764697761528,0.06087,91584.0,91583.0,0.22797512]
[1764697761827,0.006,91584.0,91583.0,0.22797512]
[1764697762136,0.1220565,91593.0,91592.0,0.0641565]
[1764697762326,0.1220565,91593.0,91592.0,0.1168065]
[1764697763435,0.1230565,91593.0,91592.0,0.1168065]
[1764697763820,0.008,91593.0,91592.0,0.1168065]
[1764697764028,0.11914,91593.0,91592.0,0.1168065]
[1764697764934,0.008,91593.0,91592.0,0.1168065]
[1764697765632,0.008,91593.0,91592.0,0.2388065]
[1764697767233,0.11114,91601.0,91600.0,0.0109156]
[1764697767437,0.1603856,91600.0,91599.0,0.0109156]
[1764697767632,0.1603856,91600.0,91592.0,0.122]
[1764697767633,0.11114,91593.0,91592.0,0.22789]
[1764697767932,0.11914,91593.0,91592.0,0.2388065]
[1764697768327,0.11214,91593.0,91592.0,0.2388065]
[1764697768935,0.11214,91593.0,91592.0,0.122]
[1764697769321,0.11114,91593.0,91592.0,0.122]
[1764697769533,0.11214,91593.0,91592.0,0.122]
[1764697770329,0.11914,91593.0,91592.0,0.122]
[1764697771437,0.1220573,91585.0,91584.0,0.122]
[1764697771742,0.4828573,91585.0,91584.0,0.122]
[1764697771939,0.47194,91585.0,91584.0,0.1329175]
[1764697772135,0.41467,91585.0,91584.0,0.2388075]
[1764697772331,0.3608,91585.0,91584.0,0.2388075]
[1764697772529,0.3618,91585.0,91584.0,0.2388075]
[1764697773336,0.3678,91585.0,91584.0,0.2388075]
[1764697776537,0.007,91585.0,91584.0,0.2388075]
[1764697781248,0.007,91585.0,91584.0,0.5996075]
[1764697781932,0.006,91585.0,91584.0,0.5996075]
[1764697782133,0.007,91585.0,91584.0,0.5996075]
[1764697782736,0.0587813,91598.0,91597.0,0.14094]
[1764697782942,0.0587813,91608.0,91606.0,0.1518548]
[1764697783138,0.14010371,91609.0,91608.0,0.14094]
[1764697785574,0.00016371,91609.0,91608.0,0.26294]
[1764697785739,0.00216371,91609.0,91608.0,0.14094]
[1764697786648,0.00016371,91609.0,91608.0,0.14094]
[1764697787452,0.00116371,91609.0,91608.0,0.14094]
[1764697787743,0.3608,91622.0,91607.0,0.0109146]
[1764697787744,0.3608,91622.0,91621.0,0.14094]
[1764697787946,0.3608,91622.0,91621.0,0.1518531]
[1764697788649,0.0587813,91630.0,91621.0,0.1518531]
[1764697788650,0.0587813,91630.0,91629.0,0.1945021]
[1764697788844,0.13994,91630.0,91629.0,0.14094]
[1764697789046,0.0518621,91629.0,91625.0,0.0109125]
[1764697789244,0.13994,91622.0,91621.0,0.0874831]
[1764697789751,0.13994,91622.0,91621.0,0.0834831]
[1764697789947,0.50074,91622.0,91621.0,0.001]
[1764697790152,0.50074,91622.0,91621.0,0.0109131]
[1764697790345,0.50074,91622.0,91621.0,0.0149131]
[1764697790544,0.50074,91622.0,91621.0,0.1558531]
[1764697790747,0.50074,91622.0,91621.0,0.0149131]
[1764697791249,0.50074,91622.0,91621.0,0.006]
[1764697792256,0.50074,91622.0,91621.0,0.128]
[1764697792650,0.50074,91622.0,91621.0,0.19957]
[1764697792952,0.50074,91622.0,91621.0,0.128]
[1764697794052,0.50074,91622.0,91610.0,0.17341891]
[1764697794053,0.1918053,91602.0,91601.0,0.122]
[1764697794254,0.13994,91591.0,91590.0,0.31442787]
[1764697794555,0.13994,91591.0,91590.0,0.26294]
[1764697794758,0.1508566,91591.0,91590.0,0.26294]
[1764697796154,0.13994,91591.0,91590.0,0.26294]
[1764697796552,0.3608,91593.0,91592.0,0.14094]
[1764697798257,0.3608,91593.0,91592.0,0.26294]
[1764697798649,0.3658,91593.0,91592.0,0.26294]
[1764697799049,0.3668,91593.0,91592.0,0.26294]
[1764697799246,0.50674,91593.0,91592.0,0.26294]
[1764697800453,0.3668,91593.0,91592.0,0.26294]
[1764697801356,0.3618,91593.0,91592.0,0.26294]
[1764697801564,0.3668,91593.0,91592.0,0.26294]
[1764697802056,0.3658,91593.0,91592.0,0.26294]
[1764697802261,0.3668,91593.0,91592.0,0.26294]
[1764697802457,0.006,91593.0,91592.0,0.26294]
[1764697803053,0.05870193,91612.0,91611.0,0.1562942]
[1764697803259,0.42559,91621.0,91620.0,0.1349732]
[1764697803453,0.3608,91621.0,91620.0,0.1749732]
[1764697803655,0.48901,91621.0,91620.0,0.0747932]
[1764697803856,0.48901,91621.0,91620.0,0.1349732]
[1764697804260,0.48901,91621.0,91620.0,0.1379732]
[1764697805355,0.42559,91621.0,91620.0,0.1779732]
[1764697805555,0.42559,91621.0,91620.0,0.1799732]
[1764697805951,0.3608,91621.0,91620.0,0.1799732]
[1764697806151,0.00016371,91630.0,91629.0,0.1349721]
[1764697807258,0.00016371,91630.0,91629.0,0.1359721]
[1764697807461,0.12837371,91630.0,91629.0,0.1359721]
[1764697807656,0.00016371,91630.0,91629.0,0.1359721]
[1764697807864,0.00016371,91630.0,91629.0,0.1389721]
[1764697811267,0.00016371,91630.0,91629.0,0.4997721]
[1764697811570,0.00016371,91630.0,91629.0,0.6217721]
[1764697813071,0.12837371,91630.0,91629.0,0.6217721]
[1764697813261,0.12837371,91630.0,91629.0,0.25006]
[1764697813463,0.12837371,91630.0,91629.0,0.126]
[1764697813766,0.12837371,91630.0,91629.0,0.25006]
[1764697816854,0.12837371,91630.0,91629.0,0.126]
[1764697817058,0.05870193,91647.0,91645.0,0.12406]
[1764697817260,0.0109093,91653.0,91645.0,0.12406]
[1764697817564,0.010909,91656.0,91645.0,0.13517018]
[1764697817871,0.0109086,91659.0,91645.0,0.13517018]
[1764697818067,0.00016371,91655.0,91645.0,0.13517018]
[1764697818468,0.00016371,91655.0,91654.0,0.12406]
[1764697818670,0.12837371,91655.0,91654.0,0.1349691]
[1764697819371,0.12837371,91655.0,91653.0,0.0109092]
[1764697819372,0.1391191,91654.0,91653.0,0.0109092]
[1764697819667,0.1391197,91650.0,91649.0,0.06388]
[1764697819869,0.12821,91650.0,91649.0,0.12406]
[1764697820976,0.12837371,91655.0,91654.0,0.12406]
[1764697821767,0.12837371,91655.0,91654.0,0.1349691]
[1764697823471,0.12937371,91655.0,91654.0,0.1349691]
[1764697824276,0.12837371,91655.0,91654.0,0.1349691]
[1764697825074,0.12937371,91655.0,91654.0,0.1349691]
[1764697827073,0.12937371,91655.0,91654.0,0.12406]
[1764697827374,0.12821,91652.0,91651.0,0.122]
[1764697827971,0.1391212,91637.0,91636.0,0.00016371]
[1764697828162,0.4999212,91637.0,91636.0,0.00016371]
[1764697828566,0.4999212,91637.0,91621.0,0.09658164]
[1764697828567,0.1391222,91631.0,91630.0,0.0109119]
[1764697828876,0.12821,91631.0,91630.0,0.0109119]
[1764697831476,0.12821,91631.0,91630.0,0.1349719]
[1764697831773,0.12821,91631.0,91630.0,0.1369719]
[1764697832279,0.12821,91631.0,91630.0,0.0129119]
[1764697832578,0.12821,91631.0,91630.0,0.1369719]
[1764697833280,0.12821,91631.0,91630.0,0.1349719]
[1764697833577,0.12921,91631.0,91630.0,0.1399719]
[1764697833773,0.12921,91631.0,91630.0,0.10158164]
[1764697834276,0.17538108,91636.0,91635.0,0.1304714]
[1764697834480,0.05857108,91639.0,91638.0,0.15632]
[1764697834682,0.3608,91654.0,91649.0,0.1304697]
[1764697834683,0.11786108,91650.0,91649.0,0.1304697]
[1764697834877,0.05857108,91650.0,91649.0,0.1304697]
[1764697835085,0.3608,91654.0,91653.0,0.11956]
[1764697835282,0.47761,91654.0,91653.0,0.1304692]
[1764697835780,0.11681,91651.0,91650.0,0.0109096]
[1764697836186,0.11681,91651.0,91650.0,0.1304696]
[1764697837476,0.05929,91651.0,91650.0,0.1672296]
[1764697837673,0.47761,91654.0,91653.0,0.1304692]
[1764697837878,0.47761,91654.0,91653.0,0.0109092]
[1764697839178,0.11681,91644.0,91643.0,0.48036]
[1764697839390,0.11681,91644.0,91643.0,0.3717104]
[1764697839780,0.11681,91644.0,91643.0,0.0109104]
[1764697839975,0.47761,91644.0,91643.0,0.0109104]
[1764697840180,0.47761,91644.0,91640.0,0.00016371]
[1764697840181,0.11681,91641.0,91640.0,0.01107451]
[1764697840484,0.11681,91641.0,91640.0,0.00016371]
[1764697841476,0.001,91644.0,91643.0,0.11956]
[1764697842986,0.00016371,91655.0,91653.0,0.0109092]
[1764697843188,0.00016371,91655.0,91643.0,0.11956]
[1764697843189,0.11681,91641.0,91640.0,0.41942279]
[1764697843390,0.11681,91641.0,91640.0,0.00216371]
[1764697843896,0.11681,91641.0,91640.0,0.00016371]
[1764697844783,0.11781,91641.0,91640.0,0.00016371]
[1764697844977,0.17638108,91641.0,91640.0,0.00016371]
[1764697845180,0.11781,91641.0,91640.0,0.00016371]
[1764697845694,0.11781,91641.0,91640.0,0.09674535]
[1764697846090,0.11681,91641.0,91640.0,0.10174535]
[1764697846293,0.11681,91641.0,91640.0,0.00716371]
[1764697846993,0.11681,91641.0,91640.0,0.00516371]
[1764697847681,0.11681,91641.0,91640.0,0.00616371]
[1764697848896,0.11681,91641.0,91640.0,0.00116371]
[1764697849602,0.11681,91641.0,91640.0,0.00516371]
[1764697851194,0.19517745,91641.0,91640.0,0.00516371]
[1764697851591,0.11681,91616.0,91610.0,0.5248]
[1764697851796,0.11681,91616.0,91615.0,0.2524738]
[1764697852102,0.11681,91616.0,91615.0,0.26309918]
[1764697852798,0.11781,91616.0,91615.0,0.26309918]
[1764697853210,0.06029,91616.0,91615.0,0.26309918]
[1764697853412,0.05929,91616.0,91615.0,0.26309918]
[1764697853715,0.06029,91616.0,91615.0,0.26309918]
[1764697853902,0.11781,91616.0,91615.0,0.26309918]
[1764697854097,0.11781,91616.0,91615.0,0.122]
[1764697854615,0.11681,91607.0,91606.0,0.11983291]
[1764697854816,0.11681,91607.0,91606.0,0.13081814]
[1764697855818,0.12181,91607.0,91606.0,0.13081814]
[1764697856113,0.12181,91607.0,91606.0,0.25281814]
[1764697857516,0.12181,91607.0,91606.0,0.24183291]
[1764697858216,0.005,91607.0,91606.0,0.25277386]
[1764697860719,0.12181,91607.0,91606.0,0.25277386]
[1764697861218,0.005,91607.0,91606.0,0.25277386]
[1764697862718,0.005,91607.0,91606.0,0.26368866]
[1764697862719,0.11601,91607.0,91606.0,0.26368866]
[1764697862916,0.1269247,91607.0,91606.0,0.26368866]
[1764697863117,0.1269247,91607.0,91606.0,0.18404291]
[1764697863416,0.10695,91585.0,91584.0,0.11746939]
[1764697863615,0.05172,91585.0,91583.0,8.512e-05]
[1764697863818,0.10695,91584.0,91583.0,0.10689512]
[1764697864316,0.3608,91584.0,91583.0,0.1286181]
[1764697864515,0.41603,91594.0,91593.0,0.1499464]
[1764697864817,0.3608,91594.0,91593.0,0.1499464]
[1764697865018,0.46791371,91605.0,91604.0,0.1177251]
[1764697865520,0.46791371,91605.0,91585.0,0.10681]
[1764697865521,0.10695,91586.0,91585.0,0.10681]
[1764697865713,0.46775,91586.0,91585.0,0.1177273]
[1764697866217,0.41603,91586.0,91585.0,0.1177273]
[1764697866816,0.3608,91586.0,91585.0,0.1177273]
[1764697868617,0.3618,91586.0,91585.0,0.1177273]
[1764697868824,0.001,91586.0,91585.0,0.2397273]
[1764697872222,0.41603,91596.0,91595.0,0.1177262]
[1764697872426,0.41603,91596.0,91595.0,0.2397262]
[1764697872629,0.46775,91596.0,91595.0,0.2397262]
[1764697873719,0.46975,91596.0,91595.0,0.22881]
[1764697875415,0.3628,91596.0,91595.0,0.22881]
[1764697875827,0.46975,91596.0,91595.0,0.22881]
[1764697876024,0.002,91596.0,91595.0,0.22881]
[1764697876419,0.00016371,91605.0,91604.0,0.1177251]
[1764697876718,0.05539371,91605.0,91604.0,0.2397251]
[1764697876925,0.10711371,91605.0,91604.0,0.1329151]
[1764697877424,0.10711371,91605.0,91604.0,0.2397251]
[1764697878320,0.10911371,91605.0,91604.0,0.1864451]
[1764697878829,0.10911371,91605.0,91604.0,0.122]
[1764697879024,0.11011371,91605.0,91604.0,0.122]
[1764697880124,0.11011371,91605.0,91604.0,0.2397251]
[1764697881026,0.47091371,91605.0,91604.0,0.2397251]
[1764697882126,0.47091371,91605.0,91604.0,0.22881]
[1764697882636,0.47091371,91605.0,91604.0,0.17553]
[1764697882819,0.47091371,91605.0,91604.0,0.22881]
[1764697887436,0.47091371,91605.0,91604.0,0.122]
[1764697889839,0.47091371,91605.0,91604.0,0.22881]
[1764697890037,0.47091371,91605.0,91604.0,0.122]
[1764697891242,0.47091371,91605.0,91604.0,0.22881]
[1764697893238,0.47091371,91605.0,91604.0,0.122]
[1764697893741,0.47091371,91605.0,91604.0,0.16928]
[1764697893937,0.47091371,91605.0,91604.0,0.122]
[1764697896645,0.47091371,91605.0,91604.0,0.21908]
[1764697896941,0.47091371,91605.0,91604.0,0.122]
[1764697898236,0.09635,91588.0,91587.0,0.03711261]
[1764697898437,0.09635,91588.0,91587.0,0.08439261]
[1764697898438,0.45715,91588.0,91587.0,0.08439261]
[1764697898937,0.45715,91588.0,91587.0,0.13419261]
[1764697899948,0.45715,91588.0,91587.0,0.08439261]
[1764697900131,0.45715,91588.0,91587.0,0.13419261]
[1764697900744,0.3608,91588.0,91587.0,0.13419261]